lending/lending_fUSD_20241212
["ID","MTS","AMOUNT","RATE_DAILY","PERIOD"]
[345103028,1734019747216,-550.0,0.00017,2]
[345103035,1734019832040,-7304.12857718,0.0001881,4]
[345103036,1734019832051,-153.0,0.00018892,2]
[345103037,1734019832060,-153.0,0.00018892,2]
[345103038,1734019832069,-153.0,0.00018892,2]
[345103039,1734019832079,-153.0,0.00018892,2]
[345103040,1734019832088,-153.0,0.00018892,2]
[345103041,1734019832100,-153.0,0.00018892,2]
[345103042,1734019832109,-153.0,0.00018892,2]
[345103043,1734019832119,-153.0,0.00018892,2]
[345103044,1734019832128,-153.0,0.00018892,2]
[345103045,1734019832137,-153.0,0.00018892,2]
[345103046,1734019832147,-153.0,0.00018892,2]
[345103047,1734019832156,-153.0,0.00018892,2]
[345103048,1734019832166,-153.0,0.00018892,2]
[345103049,1734019832175,-153.0,0.00018892,2]
[345103050,1734019832184,-153.0,0.00018892,2]
[345103051,1734019832197,-153.0,0.00018892,2]
[345103052,1734019832206,-153.0,0.00018892,2]
[345103053,1734019832216,-153.0,0.00018892,2]
[345103054,1734019832225,-153.0,0.00018892,2]
[345103055,1734019832234,-153.0,0.00018892,2]
[345103056,1734019832243,-153.0,0.00018892,2]
[345103057,1734019832253,-153.0,0.00018892,2]
[345103058,1734019832262,-153.0,0.00018892,2]
[345103059,1734019832272,-153.0,0.00018892,2]
[345103060,1734019832281,-153.0,0.00018892,2]
[345103061,1734019832290,-153.0,0.00018892,2]
[345103062,1734019832300,-153.0,0.00018892,2]
[345103063,1734019832309,-153.0,0.00018892,2]
[345103064,1734019832319,-153.0,0.00018892,2]
[345103065,1734019832328,-153.0,0.00018892,2]
[345103066,1734019832338,-153.0,0.00018892,2]
[345103067,1734019832355,-153.0,0.00018892,2]
[345103068,1734019832364,-153.0,0.00018892,2]
[345103070,1734019832373,-153.0,0.00018892,2]
[345103071,1734019832382,-85.54739075,0.00018892,2]
[345103072,1734019832394,-67.45260925,0.00018892,2]
[345103073,1734019832403,-153.0,0.00018892,2]
[345103074,1734019832412,-153.0,0.00018892,2]
[345103075,1734019832421,-153.0,0.00018892,2]
[345103077,1734019832430,-153.0,0.00018892,2]
[345103079,1734019832439,-153.0,0.00018892,2]
[345103081,1734019832448,-170.0,0.00018892,2]
[345103083,1734019832458,-170.0,0.00018892,2]
[345103085,1734019832467,-170.0,0.00018892,2]
[345103087,1734019832476,-170.0,0.00018892,2]
[345103089,1734019832486,-170.0,0.00018892,2]
[345103091,1734019832495,-170.0,0.00018892,2]
[345103093,1734019832504,-170.0,0.00018892,2]
[345103095,1734019832513,-170.0,0.00018892,2]
[345103097,1734019832523,-170.0,0.00018892,2]
[345103099,1734019832532,-170.0,0.00018892,2]
[345103101,1734019832541,-170.0,0.00018892,2]
[345103103,1734019832550,-170.0,0.00018892,2]
[345103105,1734019832560,-170.0,0.00018892,2]
[345103107,1734019832569,-170.0,0.00018892,2]
[345103109,1734019832578,-170.0,0.00018892,2]
[345103111,1734019832587,-170.0,0.00018892,2]
[345103113,1734019832601,-170.0,0.00018892,2]
[345103115,1734019832610,-170.0,0.00018892,2]
[345103117,1734019832620,-170.0,0.00018892,2]
[345103120,1734019832630,-170.0,0.00018892,2]
[345103121,1734019832638,-170.0,0.00018892,2]
[345103124,1734019832647,-170.0,0.00018892,2]
[345103126,1734019832657,-170.0,0.00018892,2]
[345103128,1734019832666,-170.0,0.00018892,2]
[345103129,1734019832676,-170.0,0.00018892,2]
[345103131,1734019832685,-170.0,0.00018892,2]
[345103133,1734019832695,-170.0,0.00018892,2]
[345103135,1734019832703,-170.0,0.00018892,2]
[345103137,1734019832712,-170.0,0.00018892,2]
[345103139,1734019832722,-170.0,0.00018892,2]
[345103141,1734019832731,-170.0,0.00018892,2]
[345103143,1734019832740,-170.0,0.00018892,2]
[345103145,1734019832749,-170.0,0.00018892,2]
[345103147,1734019832758,-170.0,0.00018892,2]
[345103149,1734019832768,-170.0,0.00018892,2]
[345103151,1734019832777,-170.0,0.00018892,2]
[345103153,1734019832786,-170.0,0.00018892,2]
[345103173,1734019832963,-170.0,0.00018892,2]
[345103175,1734019832974,-170.0,0.00018892,2]
[345103177,1734019832984,-170.0,0.00018892,2]
[345103179,1734019832993,-170.0,0.00018892,2]
[345103181,1734019833002,-170.0,0.00018892,2]
[345103183,1734019833011,-170.0,0.00018892,2]
[345103185,1734019833021,-170.0,0.00018892,2]
[345103187,1734019833030,-170.0,0.00018892,2]
[345103189,1734019833040,-170.0,0.00018892,2]
[345103191,1734019833049,-170.0,0.00018892,2]
[345103193,1734019833058,-170.0,0.00018892,2]
[345103195,1734019833067,-170.0,0.00018892,2]
[345103197,1734019833077,-170.0,0.00018892,2]
[345103199,1734019833087,-170.0,0.00018892,2]
[345103201,1734019833102,-170.0,0.00018892,2]
[345103203,1734019833113,-170.0,0.00018892,2]
[345103205,1734019833123,-170.0,0.00018892,2]
[345103207,1734019833135,-170.0,0.00018892,2]
[345103209,1734019833145,-170.0,0.00018892,2]
[345103211,1734019833155,-170.0,0.00018892,2]
[345103213,1734019833165,-170.0,0.00018892,2]
[345103215,1734019833175,-170.0,0.00018892,2]
[345103216,1734019833185,-170.0,0.00018892,2]
[345103218,1734019833194,-170.0,0.00018892,2]
[345103220,1734019833204,-170.0,0.00018892,2]
[345103222,1734019833214,-170.0,0.00018892,2]
[345103224,1734019833224,-170.0,0.00018892,2]
[345103227,1734019833235,-170.0,0.00018892,2]
[345103229,1734019833245,-170.0,0.00018892,2]
[345103230,1734019833255,-170.0,0.00018892,2]
[345103232,1734019833265,-170.0,0.00018892,2]
[345103235,1734019833275,-170.0,0.00018892,2]
[345103236,1734019833284,-170.0,0.00018892,2]
[345103238,1734019833293,-170.0,0.00018892,2]
[345103240,1734019833303,-170.0,0.00018892,2]
[345103242,1734019833313,-170.0,0.00018892,2]
[345103244,1734019833322,-170.0,0.00018892,2]
[345103246,1734019833332,-170.0,0.00018892,2]
[345103248,1734019833342,-170.0,0.00018892,2]
[345103250,1734019833355,-170.0,0.00018892,2]
[345103252,1734019833366,-170.0,0.00018892,2]
[345103254,1734019833376,-170.0,0.00018892,2]
[345103256,1734019833386,-170.0,0.00018892,2]
[345103258,1734019833396,-170.0,0.00018892,2]
[345103260,1734019833406,-170.0,0.00018892,2]
[345103262,1734019833415,-170.0,0.00018892,2]
[345103264,1734019833424,-170.0,0.00018892,2]
[345103266,1734019833436,-170.0,0.00018892,2]
[345103268,1734019833446,-170.0,0.00018892,2]
[345103270,1734019833456,-170.0,0.00018892,2]
[345103272,1734019833466,-170.0,0.00018892,2]
[345103274,1734019833475,-155.0,0.00018892,2]
[345103276,1734019833485,-155.0,0.00018892,2]
[345103278,1734019833494,-155.0,0.00018892,2]
[345103280,1734019833503,-155.0,0.00018892,2]
[345103282,1734019833514,-155.0,0.00018892,2]
[345103284,1734019833523,-155.0,0.00018892,2]
[345103286,1734019833533,-155.0,0.00018892,2]
[345103287,1734019833543,-155.0,0.00018892,2]
[345103288,1734019833552,-155.0,0.00018892,2]
[345103289,1734019833562,-155.0,0.00018892,2]
[345103290,1734019833573,-155.0,0.00018892,2]
[345103291,1734019833582,-155.0,0.00018892,2]
[345103292,1734019833595,-155.0,0.00018892,2]
[345103293,1734019833605,-155.0,0.00018892,2]
[345103294,1734019833614,-155.0,0.00018892,2]
[345103295,1734019833623,-155.0,0.00018892,2]
[345103296,1734019833633,-155.0,0.00018892,2]
[345103298,1734019833643,-155.0,0.00018892,2]
[345103300,1734019833652,-155.0,0.00018892,2]
[345103301,1734019833662,-155.0,0.00018892,2]
[345103303,1734019833671,-155.0,0.00018892,2]
[345103305,1734019833681,-155.0,0.00018892,2]
[345103307,1734019833691,-155.0,0.00018892,2]
[345103309,1734019833700,-155.0,0.00018892,2]
[345103311,1734019833709,-155.0,0.00018892,2]
[345103313,1734019833719,-155.0,0.00018892,2]
[345103315,1734019833728,-155.0,0.00018892,2]
[345103317,1734019833738,-155.0,0.00018892,2]
[345103319,1734019833747,-155.0,0.00018892,2]
[345103321,1734019833756,-155.0,0.00018892,2]
[345103323,1734019833766,-155.0,0.00018892,2]
[345103325,1734019833775,-155.0,0.00018892,2]
[345103327,1734019833784,-155.0,0.00018892,2]
[345103329,1734019833794,-155.0,0.00018892,2]
[345103331,1734019833803,-155.0,0.00018892,2]
[345103333,1734019833813,-155.0,0.00018892,2]
[345103335,1734019833822,-155.0,0.00018892,2]
[345103337,1734019833832,-155.0,0.00018892,2]
[345103339,1734019833841,-155.0,0.00018892,2]
[345103341,1734019833853,-155.0,0.00018892,2]
[345103343,1734019833863,-155.0,0.00018892,2]
[345103345,1734019833873,-155.0,0.00018892,2]
[345103347,1734019833883,-155.0,0.00018892,2]
[345103349,1734019833893,-155.0,0.00018892,2]
[345103351,1734019833903,-155.0,0.00018892,2]
[345103353,1734019833913,-155.0,0.00018892,2]
[345103355,1734019833924,-155.0,0.00018892,2]
[345103357,1734019833936,-155.0,0.00018892,2]
[345103359,1734019833945,-155.0,0.00018892,2]
[345103361,1734019833955,-155.0,0.00018892,2]
[345103363,1734019833964,-155.0,0.00018892,2]
[345103365,1734019833974,-155.0,0.00018892,2]
[345103367,1734019833985,-155.0,0.00018892,2]
[345103369,1734019833994,-155.0,0.00018892,2]
[345103371,1734019834005,-155.0,0.00018892,2]
[345103373,1734019834015,-155.0,0.00018892,2]
[345103375,1734019834026,-155.0,0.00018892,2]
[345103377,1734019834037,-155.0,0.00018892,2]
[345103379,1734019834048,-155.0,0.00018892,2]
[345103381,1734019834058,-155.0,0.00018892,2]
[345103383,1734019834067,-155.0,0.00018892,2]
[345103385,1734019834077,-155.0,0.00018892,2]
[345103387,1734019834087,-155.0,0.00018892,2]
[345103389,1734019834099,-155.0,0.00018892,2]
[345103391,1734019834108,-155.0,0.00018892,2]
[345103393,1734019834118,-155.0,0.00018892,2]
[345103395,1734019834128,-155.0,0.00018892,2]
[345103397,1734019834138,-155.0,0.00018892,2]
[345103399,1734019834148,-600.0,0.00019,2]
[345103401,1734019834158,-351.3,0.000192,31]
[345103403,1734019834169,-351.3,0.000192,31]
[345103405,1734019834179,-351.3,0.000192,31]
[345103407,1734019834189,-351.3,0.000192,31]
[345103409,1734019834199,-351.3,0.000192,31]
[345103411,1734019834209,-351.3,0.000192,31]
[345103413,1734019834218,-351.3,0.000192,31]
[345103415,1734019834228,-351.3,0.000192,31]
[345103417,1734019834239,-351.3,0.000192,31]
[345103419,1734019834249,-351.3,0.000192,31]
[345103421,1734019834258,-351.3,0.000192,31]
[345103423,1734019834268,-351.3,0.000192,31]
[345103425,1734019834278,-351.3,0.000192,31]
[345103427,1734019834287,-351.3,0.000192,31]
[345103428,1734019834297,-351.3,0.000192,31]
[345103430,1734019834307,-351.3,0.000192,31]
[345103432,1734019834318,-500.0,0.00019879,2]
[345103435,1734019834327,-501.6483017,0.00019879,2]
[345103436,1734019834337,-500.0,0.00019879,2]
[345103438,1734019834350,-1000.0,0.00019879,2]
[345103440,1734019834360,-595.27,0.00019879,2]
[345103443,1734019834370,-594.87,0.00019879,2]
[345103444,1734019834380,-500.0,0.00019879,2]
[345103446,1734019834390,-500.0,0.00019879,2]
[345103448,1734019834399,-581.82,0.00019879,2]
[345103450,1734019834409,-500.0,0.00019879,2]
[345103452,1734019834418,-685.65,0.00019879,2]
[345103454,1734019834428,-610.48,0.00019879,2]
[345103456,1734019834437,-605.31,0.00019879,2]
[345103458,1734019834447,-500.0,0.00019879,2]
[345103460,1734019834456,-500.0,0.00019879,2]
[345103462,1734019834465,-572.83,0.00019879,2]
[345103464,1734019834475,-505.75,0.00019879,2]
[345103466,1734019834484,-417.77006739,0.00019879,2]
[345103468,1734019834492,-500.0,0.00019879,2]
[345103470,1734019834502,-500.0,0.00019879,2]
[345103472,1734019834511,-500.0,0.00019879,2]
[345103474,1734019834520,-500.0,0.00019879,2]
[345103476,1734019834530,-500.0,0.00019879,2]
[345103478,1734019834540,-500.0,0.00019879,2]
[345103480,1734019834549,-500.0,0.00019879,2]
[345103482,1734019834559,-500.0,0.00019879,2]
[345103484,1734019834568,-500.0,0.00019879,2]
[345103486,1734019834577,-500.0,0.00019879,2]
[345103488,1734019834586,-500.0,0.00019879,2]
[345103490,1734019834598,-500.0,0.00019879,2]
[345103492,1734019834607,-353.8,0.00019879,2]
[345103494,1734019834616,-500.0,0.00019879,2]
[345103496,1734019834626,-500.0,0.00019879,2]
[345103498,1734019834635,-503.0944956,0.00020153,2]
[345103500,1734019834644,-1000.0,0.00020153,2]
[345103502,1734019834654,-500.0,0.00020153,2]
[345103504,1734019834663,-500.0,0.00020153,2]
[345103506,1734019834672,-685.65,0.00020153,2]
[345103508,1734019834681,-500.0,0.00020153,2]
[345103510,1734019834690,-500.0,0.00020153,2]
[345103512,1734019834699,-500.0,0.00020153,2]
[345103513,1734019834708,-500.0,0.00020153,2]
[345103515,1734019834717,-369.7,0.00020153,2]
[345103517,1734019834726,-500.0,0.00020153,2]
[345103519,1734019834735,-500.0,0.00020153,2]
[345103521,1734019834745,-605.86,0.00020153,2]
[345103523,1734019834755,-500.0,0.00020153,2]
[345103525,1734019834764,-366.62,0.00020153,2]
[345103527,1734019834773,-447.50128323,0.00020153,2]
[345103529,1734019834783,-500.0,0.00020153,2]
[345103531,1734019834791,-1038.09,0.00020198,2]
[345103533,1734019834801,-449.03,0.00020223,2]
[345103535,1734019834811,-1524.5,0.00020249,2]
[345103537,1734019834819,-1500.0,0.00020326,2]
[345103539,1734019834828,-1000.0,0.00020339,2]
[345103541,1734019834838,-181.64,0.00020368,2]
[345103543,1734019834848,-195.24,0.00020427,2]
[345103545,1734019834858,-500.0,0.00020427,2]
[345103547,1734019834867,-500.0,0.00020427,2]
[345103549,1734019834877,-685.65,0.00020427,2]
[345103551,1734019834886,-500.0,0.00020427,2]
[345103553,1734019834895,-500.0,0.00020427,2]
[345103555,1734019834905,-647.20913086,0.00020427,2]
[345103557,1734019834915,-500.0,0.00020427,2]
[345103559,1734019834925,-500.0,0.00020427,2]
[345103561,1734019834937,-500.0,0.00020427,2]
[345103563,1734019834947,-500.0,0.00020427,2]
[345103565,1734019834956,-500.0,0.00020427,2]
[345103567,1734019834967,-1676.0,0.00020459,2]
[345103569,1734019834976,-497.89,0.00020489,30]
[345103572,1734019834986,-250.0,0.00020541,2]
[345103573,1734019834995,-200.0,0.0002056,2]
[345103576,1734019835006,-153.39,0.00020579,2]
[345103577,1734019835015,-2000.0,0.00020579,120]
[345103579,1734019835025,-1676.0,0.0002067,2]
[345103581,1734019835034,-500.0,0.00020701,2]
[345103583,1734019835043,-500.0,0.00020701,2]
[345103585,1734019835052,-685.65,0.00020701,2]
[345103587,1734019835061,-500.0,0.00020701,2]
[345103589,1734019835069,-500.0,0.00020701,2]
[345103591,1734019835078,-500.0,0.00020701,2]
[345103593,1734019835087,-500.0,0.00020701,2]
[345103595,1734019835097,-500.0,0.00020701,2]
[345103597,1734019835106,-500.0,0.00020701,2]
[345103599,1734019835116,-500.0,0.00020701,2]
[345103601,1734019835125,-1676.0,0.00020881,2]
[345103603,1734019835134,-500.0,0.00020975,2]
[345103605,1734019835143,-500.0,0.00020975,2]
[345103607,1734019835153,-685.65,0.00020975,2]
[345103609,1734019835162,-500.0,0.00020975,2]
[345103611,1734019835171,-500.0,0.00020975,2]
[345103613,1734019835180,-500.0,0.00020975,2]
[345103614,1734019835190,-588.24,0.00020975,2]
[345103616,1734019835200,-500.0,0.00020975,2]
[345103618,1734019835209,-500.0,0.00020975,2]
[345103621,1734019835219,-650.0,0.00021,2]
[345103622,1734019835228,-1676.0,0.00021092,2]
[345103624,1734019835237,-661.54521907,0.00021092,2]
[345103626,1734019835249,-500.0,0.00021249,2]
[345103628,1734019835258,-462.06,0.00021249,2]
[345103630,1734019835267,-685.65,0.00021249,2]
[345103632,1734019835279,-500.0,0.00021249,2]
[345103634,1734019835288,-500.0,0.00021249,2]
[345103635,1734019835297,-500.0,0.00021249,2]
[345103636,1734019835306,-500.0,0.00021249,2]
[345103637,1734019835316,-1676.0,0.00021303,2]
[345103638,1734019835325,-250.0,0.00021445,2]
[345103639,1734019835334,-601.22,0.00021466,2]
[345103640,1734019835343,-534.99,0.00021503,2]
[345103641,1734019835353,-1676.0,0.00021514,2]
[345103642,1734019835363,-221.54862889,0.00021523,2]
[345103643,1734019835372,-685.65,0.00021523,2]
[345103645,1734019835381,-500.0,0.00021523,2]
[345103647,1734019835390,-500.0,0.00021523,2]
[345103649,1734019835400,-500.0,0.00021523,2]
[345103651,1734019835409,-500.0,0.00021523,2]
[345103653,1734019835418,-1676.0,0.00021724,2]
[345103655,1734019835427,-23900.0,0.00021757,2]
[345103657,1734019835437,-192.42,0.00021764,2]
[345103659,1734019835446,-425.66,0.00021765,2]
[345103661,1734019835455,-685.65,0.00021797,2]
[345103663,1734019835465,-500.0,0.00021797,2]
[345103665,1734019835475,-200.52430466,0.00021797,2]
[345103667,1734019835484,-500.0,0.00021797,2]
[345103669,1734019835493,-310.20422525,0.00021797,2]
[345103671,1734019835502,-1012.46,0.00021818,2]
[345103672,1734019835511,-1812.042,0.00021833,2]
[345103675,1734019835521,-200.0,0.000219,2]
[345103676,1734019835531,-1000.0,0.00021917,2]
[345103678,1734019835541,-1083.63,0.00021917,2]
[345103680,1734019835551,-500.0,0.00022,2]
[345103682,1734019835560,-500.0,0.00022,2]
[345103685,1734019835570,-160.0,0.00022,2]
[345103687,1734019835580,-177.0,0.00022,2]
[345103688,1734019835589,-685.65,0.00022071,2]
[345103691,1734019835605,-500.0,0.00022071,2]
[345103693,1734019835615,-348.75002604,0.00022071,2]
[345103695,1734019835624,-685.65,0.00022345,2]
[345103697,1734019835633,-500.0,0.00022345,2]
[345103699,1734019835643,-502.27,0.00022463,2]
[345103701,1734019835652,-90255.65306227,0.00022463,2]
[345103720,1734019835827,-2868.125,0.00022463,2]
[345103722,1734019835838,-5106.5,0.00022463,2]
[345103724,1734019835854,-22779.01593773,0.00022463,2]
[345103726,1734019835864,-3000.0,0.000225,2]
[345103728,1734019835873,-685.65,0.00022619,2]
[345103730,1734019835883,-500.0,0.00022619,2]
[345103733,1734019835892,-2000.0,0.00022663,120]
[345103735,1734019835903,-1000.0,0.000227,2]
[345103736,1734019835913,-502.27,0.00022736,2]
[345103738,1734019835924,-351.3,0.000228,31]
[345103740,1734019835935,-351.3,0.000228,31]
[345103742,1734019835945,-351.3,0.000228,31]
[345103744,1734019835954,-351.3,0.000228,31]
[345103746,1734019835963,-351.3,0.000228,31]
[345103748,1734019835974,-351.3,0.000228,31]
[345103750,1734019835986,-351.3,0.000228,31]
[345103752,1734019835995,-351.3,0.000228,31]
[345103754,1734019836005,-351.3,0.000228,31]
[345103756,1734019836015,-351.3,0.000228,31]
[345103758,1734019836025,-351.3,0.000228,31]
[345103760,1734019836034,-351.3,0.000228,31]
[345103762,1734019836044,-351.3,0.000228,31]
[345103764,1734019836054,-351.3,0.000228,31]
[345103766,1734019836063,-351.3,0.000228,31]
[345103768,1734019836073,-351.3,0.000228,31]
[345103770,1734019836082,-351.3,0.000228,31]
[345103772,1734019836091,-351.3,0.000228,31]
[345103774,1734019836102,-351.3,0.000228,31]
[345103776,1734019836111,-351.3,0.000228,31]
[345103778,1734019836121,-351.3,0.000228,31]
[345103780,1734019836131,-351.3,0.000228,31]
[345103782,1734019836140,-351.3,0.000228,31]
[345103784,1734019836149,-351.3,0.000228,31]
[345103786,1734019836158,-1000.0,0.00022882,2]
[345103788,1734019836168,-685.65,0.00022893,2]
[345103790,1734019836177,-500.0,0.00022893,2]
[345103792,1734019836187,-157.89295106,0.000229,2]
[345103794,1734019836196,-500.0,0.00023,2]
[345103796,1734019836206,-500.0,0.00023,2]
[345103798,1734019836216,-700.0,0.00023,2]
[345103799,1734019836225,-200.0,0.00023,2]
[345103802,1734019836235,-502.27,0.0002301,2]
[345103804,1734019836245,-177.0,0.00023014,2]
[345103806,1734019836255,-150.0,0.00023065,2]
[345103808,1734019836267,-497.89,0.00023073,30]
[345103810,1734019836277,-157.89295106,0.0002315,2]
[345103812,1734019836287,-685.65,0.00023167,2]
[345103814,1734019836296,-500.0,0.00023167,2]
[345103816,1734019836306,-502.27,0.00023284,2]
[345103818,1734019836316,-300.0,0.000233,2]
[345103820,1734019836326,-157.89295106,0.000234,2]
[345103822,1734019836335,-685.65,0.00023441,2]
[345103824,1734019836345,-501.23,0.00023441,2]
[345103826,1734019836358,-1000.0,0.000235,3]
[345103828,1734019836369,-634.0,0.000235,7]
[345103830,1734019836385,-1000.0,0.000235,4]
[345103832,1734019836395,-502.27,0.00023558,2]
[345103834,1734019836404,-157.89295106,0.0002365,2]
[345103836,1734019836413,-1000.0,0.000237,3]
[345103838,1734019836423,-685.65,0.00023715,2]
[345103840,1734019836432,-601.22,0.0002373,2]
[345103842,1734019836442,-349.43,0.0002375,2]
[345103844,1734019836451,-1000.0,0.00023751,2]
[345103846,1734019836461,-502.27,0.00023832,2]
[345103848,1734019836470,-150.0,0.00023849,120]
[345103850,1734019836479,-192.60235425,0.0002386,2]
[345103852,1734019836489,-157.89295106,0.000239,2]
[345103854,1734019836498,-685.65,0.00023989,2]
[345103856,1734019836508,-500.0,0.00024,2]
[345103858,1734019836517,-500.0,0.00024,2]
[345103860,1734019836526,-500.0,0.00024,2]
[345103862,1734019836535,-1000.0,0.00024,5]
[345103863,1734019836544,-1000.0,0.00024,5]
[345103865,1734019836553,-500.0,0.00024,2]
[345103867,1734019836563,-1000.0,0.00024,5]
[345103869,1734019836573,-1000.0,0.00024,5]
[345103871,1734019836582,-500.0,0.00024,2]
[345103874,1734019836592,-500.0,0.00024,2]
[345103876,1734019836610,-500.0,0.00024,2]
[345103878,1734019836619,-248.0,0.00024,2]
[345103880,1734019836628,-200.0,0.00024025,2]
[345103881,1734019836638,-4061.57,0.00024036,2]
[345103883,1734019836647,-502.27,0.00024106,2]
[345103885,1734019836656,-4110.21,0.00024136,2]
[345103887,1734019836666,-157.89295106,0.0002415,2]
[345103889,1734019836675,-177.0,0.00024164,2]
[345103891,1734019836685,-5443.2858,0.000242,2]
[345103893,1734019836694,-150.0,0.00024204,2]
[345103895,1734019836704,-685.65,0.00024263,2]
[345103897,1734019836713,-810.888195,0.00024263,120]
[345103899,1734019836722,-500.0,0.00024299,2]
[345103901,1734019836732,-500.0,0.00024299,2]
[345103903,1734019836741,-500.0,0.00024299,2]
[345103905,1734019836751,-500.0,0.00024299,2]
[345103907,1734019836761,-500.0,0.00024299,2]
[345103909,1734019836771,-500.0,0.00024299,2]
[345103911,1734019836780,-636.46,0.00024299,2]
[345103913,1734019836791,-500.0,0.00024299,2]
[345103915,1734019836800,-500.0,0.000243,2]
[345103917,1734019836810,-615.90810083,0.000243,2]
[345103919,1734019836819,-500.0,0.000243,2]
[345103921,1734019836828,-500.0,0.000243,2]
[345103923,1734019836838,-500.0,0.000243,2]
[345103925,1734019836851,-500.0,0.000243,2]
[345103927,1734019836861,-500.0,0.000243,2]
[345103929,1734019836870,-500.0,0.000243,2]
[345103931,1734019836880,-500.0,0.000243,2]
[345103933,1734019836890,-500.0,0.000243,2]
[345103935,1734019836900,-955.29128373,0.000243,2]
[345103936,1734019836910,-500.0,0.000243,2]
[345103937,1734019836921,-500.0,0.000243,2]
[345103947,1734019837091,-500.0,0.000243,2]
[345103949,1734019837104,-700.0,0.000243,2]
[345103951,1734019837113,-500.0,0.000243,2]
[345103953,1734019837122,-500.0,0.000243,2]
[345103955,1734019837131,-500.0,0.000243,2]
[345103957,1734019837141,-500.0,0.000243,2]
[345103959,1734019837149,-500.0,0.000243,2]
[345103960,1734019837159,-500.0,0.000243,2]
[345103962,1734019837168,-500.0,0.000243,2]
[345103965,1734019837179,-500.0,0.000243,2]
[345103967,1734019837189,-500.0,0.000243,2]
[345103969,1734019837199,-500.0,0.000243,2]
[345103971,1734019837208,-500.0,0.000243,2]
[345103973,1734019837218,-800.0,0.000243,2]
[345103975,1734019837227,-902.43775066,0.000243,2]
[345103977,1734019837236,-500.0,0.000243,2]
[345103979,1734019837246,-500.0,0.000243,2]
[345103980,1734019837255,-500.0,0.000243,2]
[345103982,1734019837264,-500.0,0.000243,2]
[345103984,1734019837274,-500.0,0.000243,2]
[345103986,1734019837283,-500.0,0.000243,2]
[345103988,1734019837293,-500.0,0.000243,2]
[345103990,1734019837302,-500.0,0.000243,2]
[345103992,1734019837311,-500.0,0.000243,2]
[345103994,1734019837321,-500.0,0.000243,2]
[345103996,1734019837330,-500.0,0.000243,2]
[345103998,1734019837339,-500.0,0.000243,2]
[345104000,1734019837351,-500.0,0.000243,2]
[345104003,1734019837361,-500.0,0.000243,2]
[345104004,1734019837371,-500.0,0.000243,2]
[345104006,1734019837380,-500.0,0.000243,2]
[345104008,1734019837390,-500.0,0.000243,2]